fUST/lending_fUST_20250518
["ID","MTS","AMOUNT","RATE_DAILY","PERIOD"]
[361381268,1747535439955,-456.2016992,0.00013972,2]
[361381271,1747535439964,-444.85753097,0.00013972,2]
[361381273,1747535439973,-450.0,0.00013972,2]
[361381276,1747535439983,-456.43515012,0.00013972,2]
[361381279,1747535439994,-539.42032653,0.00013972,2]
[361381282,1747535440003,-291.4799013,0.00013972,2]
[361381284,1747535440013,-450.0,0.00013972,2]
[361381286,1747535440023,-580.28430422,0.00013972,2]
[361381288,1747535440032,-450.0,0.00013972,2]
[361381290,1747535440041,-450.0,0.00013972,2]
[361381291,1747535440050,-513.98597069,0.00013972,2]
[361381293,1747535440061,-450.0,0.00013972,2]
[361381294,1747535440070,-450.0,0.00013972,2]
[361381295,1747535440079,-256.78022524,0.00013972,2]
[361381296,1747535440088,-225.22716824,0.00013972,2]
[361381297,1747535440099,-300.18,0.00013972,2]
[361381298,1747535440109,-277.57216152,0.00013972,2]
[361381299,1747535440119,-450.0,0.00013972,2]
[361381300,1747535440128,-450.0,0.00013972,2]
[361381301,1747535440137,-450.0,0.00013972,2]
[361381302,1747535440146,-356.52022718,0.00013972,2]
[361381303,1747535440155,-281.88840161,0.00013972,2]
[361381304,1747535440164,-465.24527507,0.00013972,2]
[361381305,1747535440173,-1107.9,0.00013972,2]
[361381306,1747535440183,-450.0,0.00013972,2]
[361381307,1747535440192,-173.78079704,0.00013972,2]
[361381308,1747535440201,-562.13338322,0.00013972,2]
[361381309,1747535440211,-450.0,0.00013972,2]
[361381310,1747535440220,-432.55967288,0.00013972,2]
[361381311,1747535440229,-450.0,0.00013972,2]
[361381312,1747535440238,-389.79976277,0.00013972,2]
[361381313,1747535440247,-450.0,0.00013972,2]
[361381314,1747535440256,-450.0,0.00013972,2]
[361381315,1747535440265,-450.0,0.00013972,2]
[361381316,1747535440274,-563.71457883,0.00013972,2]
[361381317,1747535440283,-450.0,0.00013972,2]
[361381318,1747535440293,-450.0,0.00013972,2]
[361381319,1747535440302,-450.0,0.00013972,2]
[361381320,1747535440311,-553.62,0.00013972,2]
[361381321,1747535440320,-450.0,0.00013972,2]
[361381322,1747535440329,-450.0,0.00013972,2]
[361381323,1747535440338,-450.0,0.00013972,2]
[361381324,1747535440347,-450.0,0.00013972,2]
[361381325,1747535440356,-450.0,0.00013972,2]
[361381326,1747535440365,-450.0,0.00013972,2]
[361381327,1747535440375,-1081.44,0.00013972,2]
[361381328,1747535440384,-550.32,0.00013972,2]
[361381329,1747535440395,-450.0,0.00013972,2]
[361381330,1747535440404,-548.79,0.00013972,2]
[361381331,1747535440413,-450.0,0.00013972,2]
[361381332,1747535440422,-205.99243092,0.00013972,2]
[361381333,1747535440431,-167.61917704,0.00013972,2]
[361381334,1747535440441,-429.45086252,0.00013972,2]
[361381335,1747535440452,-450.0,0.00013972,2]
[361381336,1747535440463,-342.13169332,0.00013972,2]
[361381337,1747535440473,-481.36441645,0.00013972,2]
[361381338,1747535440484,-450.0,0.00013972,2]
[361381339,1747535440493,-450.0,0.00013972,2]
[361381340,1747535440504,-2131.66,0.00013972,2]
[361381341,1747535440516,-319.80361337,0.00013972,2]
[361381342,1747535440526,-466.77487443,0.00013972,2]
[361381343,1747535440536,-605.18,0.00013972,2]
[361381344,1747535440546,-450.0,0.00013972,2]
[361381345,1747535440558,-160.0,0.00014047,2]
[361381346,1747535440569,-998.55070715,0.00014047,2]
[361381347,1747535440579,-314.4327999,0.00014104,2]
[361381348,1747535440589,-12636.50182523,0.00014104,2]
[361381349,1747535440598,-160.0,0.00014104,2]
[361381350,1747535440607,-212.32903618,0.00014104,2]
[361381351,1747535440618,-422.53311782,0.00014104,2]
[361381352,1747535440627,-296.29299077,0.00014109,2]
[361381353,1747535440637,-231.30703436,0.00014109,2]
[361381354,1747535440646,-431.21485466,0.00014109,2]
[361381355,1747535440657,-150.33183388,0.00014109,2]
[361381356,1747535440668,-454.3,0.00014109,2]
[361381357,1747535440677,-227.4583171,0.00014109,2]
[361381358,1747535440686,-450.0,0.00014109,2]
[361381359,1747535440697,-206.35232668,0.00014109,2]
[361381360,1747535440707,-572.56421797,0.00014109,2]
[361381361,1747535440718,-450.0,0.00014109,2]
[361381362,1747535440727,-450.0,0.00014109,2]
[361381363,1747535440738,-450.0,0.00014109,2]
[361381364,1747535440747,-450.0,0.00014109,2]
[361381365,1747535440756,-450.0,0.00014109,2]
[361381366,1747535440767,-450.0,0.00014109,2]
[361381367,1747535440778,-450.0,0.00014109,2]
[361381368,1747535440789,-545.3,0.00014109,2]
[361381369,1747535440799,-1107.9,0.00014109,2]
[361381370,1747535440809,-498.05344831,0.00014109,2]
[361381371,1747535440818,-450.0,0.00014109,2]
[361381372,1747535440829,-450.0,0.00014109,2]
[361381373,1747535440839,-450.0,0.00014109,2]
[361381374,1747535440848,-481.23848313,0.00014109,2]
[361381375,1747535440858,-450.0,0.00014109,2]
[361381376,1747535440868,-450.0,0.00014109,2]
[361381377,1747535440878,-499.85,0.00014109,2]
[361381378,1747535440887,-251.79404309,0.00014109,2]
[361381379,1747535440896,-493.32433373,0.00014109,2]
[361381380,1747535440906,-450.0,0.00014109,2]
[361381381,1747535440916,-450.0,0.00014109,2]
[361381382,1747535440926,-238.9666858,0.00014109,2]
[361381383,1747535440937,-450.0,0.00014109,2]
[361381384,1747535440948,-242.08967935,0.00014109,2]
[361381385,1747535440958,-1081.44,0.00014109,2]
[361381386,1747535440968,-450.0,0.00014109,2]
[361381387,1747535440977,-548.79,0.00014109,2]
[361381388,1747535440987,-450.0,0.00014109,2]
[361381389,1747535440997,-450.0,0.00014109,2]
[361381390,1747535441006,-450.0,0.00014109,2]
[361381391,1747535441016,-552.74020588,0.00014109,2]
[361381392,1747535441028,-2131.66,0.00014109,2]
[361381393,1747535441037,-605.18,0.00014109,2]
[361381394,1747535441048,-450.0,0.00014109,2]
[361381395,1747535441059,-1002.55483837,0.00014197,2]
[361381396,1747535441069,-500.0,0.00014202,2]
[361381397,1747535441079,-1000.0,0.00014221,2]
[361381398,1747535441088,-151.0,0.00014246,2]
[361381399,1747535441097,-530.84,0.00014246,2]
[361381400,1747535441105,-450.0,0.00014246,2]
[361381401,1747535441114,-450.0,0.00014246,2]
[361381402,1747535441123,-229.32524711,0.00014246,2]
[361381403,1747535441132,-450.0,0.00014246,2]
[361381404,1747535441141,-450.0,0.00014246,2]
[361381405,1747535441153,-450.0,0.00014246,2]
[361381406,1747535441162,-450.0,0.00014246,2]
[361381407,1747535441171,-1107.9,0.00014246,2]
[361381408,1747535441180,-450.0,0.00014246,2]
[361381409,1747535441189,-450.0,0.00014246,2]
[361381410,1747535441198,-450.0,0.00014246,2]
[361381411,1747535441207,-450.0,0.00014246,2]
[361381412,1747535441216,-450.0,0.00014246,2]
[361381413,1747535441227,-450.0,0.00014246,2]
[361381414,1747535441238,-571.51888559,0.00014246,2]
[361381415,1747535441249,-450.0,0.00014246,2]
[361381416,1747535441260,-1081.44,0.00014246,2]
[361381417,1747535441270,-498.72604911,0.00014246,2]
[361381418,1747535441279,-548.79,0.00014246,2]
[361381419,1747535441288,-450.0,0.00014246,2]
[361381420,1747535441297,-469.17,0.00014246,2]
[361381421,1747535441307,-450.0,0.00014246,2]
[361381422,1747535441316,-2131.66,0.00014246,2]
[361381423,1747535441325,-605.18,0.00014246,2]
[361381424,1747535441334,-450.0,0.00014246,2]
[361381425,1747535441343,-502.39093669,0.00014273,2]
[361381426,1747535441352,-500.0,0.00014305,2]
[361381427,1747535441361,-151.0,0.00014312,2]
[361381428,1747535441370,-151.0,0.00014313,2]
[361381429,1747535441380,-151.0,0.00014313,2]
[361381430,1747535441390,-151.0,0.00014313,2]
[361381431,1747535441399,-3393.25370681,0.00014314,2]
[361381432,1747535441409,-339.48956274,0.00014363,2]
[361381433,1747535441419,-450.0,0.00014383,2]
[361381434,1747535441431,-203.66095979,0.00014383,2]
[361381435,1747535441439,-450.0,0.00014383,2]
[361381436,1747535441448,-450.0,0.00014383,2]
[361381437,1747535441457,-450.0,0.00014383,2]
[361381438,1747535441467,-450.0,0.00014383,2]
[361381439,1747535441476,-1107.9,0.00014383,2]
[361381440,1747535441485,-450.0,0.00014383,2]
[361381441,1747535441496,-450.0,0.00014383,2]
[361381442,1747535441506,-422.40625677,0.00014383,2]
[361381443,1747535441515,-450.0,0.00014383,2]
[361381444,1747535441526,-450.0,0.00014383,2]
[361381445,1747535441536,-450.0,0.00014383,2]
[361381446,1747535441547,-450.0,0.00014383,2]
[361381447,1747535441558,-1081.44,0.00014383,2]
[361381448,1747535441568,-548.79,0.00014383,2]
[361381449,1747535441578,-450.0,0.00014383,2]
[361381450,1747535441590,-450.0,0.00014383,2]
[361381451,1747535441600,-2131.66,0.00014383,2]
[361381452,1747535441610,-605.18,0.00014383,2]
[361381453,1747535441619,-450.0,0.00014383,2]
[361381454,1747535441628,-501.70721167,0.00014391,2]
[361381455,1747535441637,-395.07765606,0.00014391,2]
[361381456,1747535441647,-501.32325228,0.00014391,2]
[361381457,1747535441656,-501.7000094,0.00014391,2]
[361381458,1747535441665,-501.54684634,0.00014391,2]
[361381459,1747535441675,-502.92156469,0.00014391,2]
[361381460,1747535441684,-502.5710084,0.00014391,2]
[361381461,1747535441693,-347.725376,0.00014466,2]
[361381462,1747535441702,-502.38922047,0.00014467,2]
[361381463,1747535441711,-500.0,0.00014467,2]
[361381464,1747535441721,-278.22807128,0.00014486,2]
[361381465,1747535441730,-151.0,0.00014519,2]
[361381466,1747535441740,-157.176,0.00014519,2]
[361381467,1747535441749,-151.0,0.00014519,2]
[361381468,1747535441758,-151.0,0.0001452,2]
[361381469,1747535441767,-151.0,0.0001452,2]
[361381470,1747535441778,-151.0,0.0001452,2]
[361381471,1747535441789,-450.0,0.0001452,2]
[361381472,1747535441798,-547.24590714,0.0001452,2]
[361381473,1747535441807,-450.0,0.0001452,2]
[361381474,1747535441816,-515.88,0.0001452,2]
[361381475,1747535441826,-450.0,0.0001452,2]
[361381476,1747535441835,-1107.9,0.0001452,2]
[361381477,1747535441844,-553.19533843,0.0001452,2]
[361381478,1747535441855,-450.0,0.0001452,2]
[361381479,1747535441864,-450.0,0.0001452,2]
[361381480,1747535441873,-450.0,0.0001452,2]
[361381481,1747535441882,-450.0,0.0001452,2]
[361381482,1747535441892,-450.0,0.0001452,2]
[361381483,1747535441901,-1081.44,0.0001452,2]
[361381484,1747535441910,-548.79,0.0001452,2]
[361381485,1747535441920,-450.0,0.0001452,2]
[361381486,1747535441931,-450.0,0.0001452,2]
[361381487,1747535441941,-2131.66,0.0001452,2]
[361381488,1747535441950,-605.18,0.0001452,2]
[361381489,1747535441959,-450.0,0.0001452,2]
[361381490,1747535441968,-251.16442476,0.000146,2]
[361381491,1747535441977,-151.390826,0.00014657,2]
[361381492,1747535441986,-257.76,0.00014657,2]
[361381493,1747535441995,-450.0,0.00014657,2]
[361381494,1747535442004,-450.0,0.00014657,2]
[361381495,1747535442013,-1107.9,0.00014657,2]
[361381496,1747535442022,-529.83135849,0.00014657,2]
[361381497,1747535442031,-450.0,0.00014657,2]
[361381498,1747535442041,-450.0,0.00014657,2]
[361381499,1747535442050,-450.0,0.00014657,2]
[361381500,1747535442059,-450.0,0.00014657,2]
[361381501,1747535442068,-1081.44,0.00014657,2]
[361381502,1747535442077,-548.79,0.00014657,2]
[361381503,1747535442086,-450.0,0.00014657,2]
[361381504,1747535442096,-450.0,0.00014657,2]
[361381505,1747535442105,-2131.66,0.00014657,2]
[361381506,1747535442114,-605.18,0.00014657,2]
[361381507,1747535442123,-450.0,0.00014657,2]
[361381508,1747535442132,-554.10614794,0.00014697,2]
[361381509,1747535442141,-3393.25370681,0.00014728,2]
[361381510,1747535442150,-366.286,0.00014751,2]
[361381511,1747535442159,-1500.0,0.00014768,2]
[361381512,1747535442168,-151.0,0.00014794,2]
[361381513,1747535442177,-151.0,0.00014794,2]
[361381514,1747535442186,-399.34,0.00014794,2]
[361381515,1747535442196,-450.0,0.00014794,2]
[361381516,1747535442205,-1107.9,0.00014794,2]
[361381517,1747535442215,-450.0,0.00014794,2]
[361381518,1747535442224,-450.0,0.00014794,2]
[361381519,1747535442233,-450.0,0.00014794,2]
[361381520,1747535442243,-450.0,0.00014794,2]
[361381521,1747535442252,-1081.44,0.00014794,2]
[361381523,1747535442262,-548.79,0.00014794,2]
[361381524,1747535442271,-450.0,0.00014794,2]
[361381525,1747535442283,-450.0,0.00014794,2]
[361381527,1747535442294,-2131.66,0.00014794,2]
[361381528,1747535442303,-605.18,0.00014794,2]
[361381530,1747535442312,-450.0,0.00014794,2]
[361381532,1747535442321,-407.146,0.00014808,2]
[361381533,1747535442331,-587.0,0.00014847,2]
[361381534,1747535442340,-342.81234658,0.00014867,2]
[361381535,1747535442350,-151.0,0.00014931,2]
[361381536,1747535442359,-151.0,0.00014931,2]
[361381537,1747535442368,-151.0,0.00014931,2]
[361381538,1747535442380,-450.0,0.00014931,2]
[361381539,1747535442391,-1107.9,0.00014931,2]
[361381540,1747535442401,-450.0,0.00014931,2]
[361381541,1747535442410,-450.0,0.00014931,2]
[361381542,1747535442419,-450.0,0.00014931,2]
[361381543,1747535442429,-450.0,0.00014931,2]
[361381544,1747535442438,-1081.44,0.00014931,2]
[361381547,1747535442447,-548.79,0.00014931,2]
[361381548,1747535442456,-450.0,0.00014931,2]
[361381549,1747535442466,-450.0,0.00014931,2]
[361381551,1747535442475,-2131.66,0.00014931,2]
[361381553,1747535442484,-605.18,0.00014931,2]
[361381554,1747535442493,-450.0,0.00014931,2]
[361381555,1747535442503,-160.0,0.00015,2]
[361381556,1747535442513,-162.37639868,0.00015067,2]
[361381557,1747535442640,-510.40975383,0.00015068,2]
[361381558,1747535442650,-1107.9,0.00015068,2]
[361381559,1747535442660,-450.0,0.00015068,2]
[361381560,1747535442669,-450.0,0.00015068,2]
[361381561,1747535442678,-450.0,0.00015068,2]
[361381562,1747535442687,-450.0,0.00015068,2]
[361381563,1747535442697,-1081.44,0.00015068,2]
[361381564,1747535442707,-450.0,0.00015068,2]
[361381565,1747535442716,-548.79,0.00015068,2]
[361381566,1747535442727,-450.0,0.00015068,2]
[361381567,1747535442736,-2131.66,0.00015068,2]
[361381568,1747535442745,-605.18,0.00015068,2]
[361381569,1747535442755,-3393.25370681,0.00015141,2]
[361381570,1747535442765,-151.0,0.00015205,2]
[361381571,1747535442774,-193.609728,0.00015205,2]
[361381572,1747535442788,-1107.9,0.00015205,2]
[361381573,1747535442797,-450.0,0.00015205,2]
[361381574,1747535442807,-450.0,0.00015205,2]
[361381575,1747535442816,-450.0,0.00015205,2]
[361381576,1747535442827,-450.0,0.00015205,2]
[361381577,1747535442837,-1081.44,0.00015205,2]
[361381578,1747535442846,-450.0,0.00015205,2]
[361381579,1747535442856,-548.79,0.00015205,2]
[361381580,1747535442866,-450.0,0.00015205,2]
[361381581,1747535442876,-2131.66,0.00015205,2]
[361381582,1747535442885,-605.18,0.00015205,2]
[361381583,1747535442895,-2000.0,0.00015316,2]
[361381584,1747535442904,-151.0,0.00015342,2]
[361381585,1747535442913,-1107.9,0.00015342,2]
[361381586,1747535442922,-356.73282908,0.00015342,2]
[361381587,1747535442932,-450.0,0.00015342,2]
[361381588,1747535442941,-450.0,0.00015342,2]
[361381589,1747535442952,-237.28370722,0.00015342,2]
[361381592,1747535442962,-1081.44,0.00015342,2]
[361381595,1747535442972,-450.0,0.00015342,2]
[361381597,1747535442982,-548.79,0.00015342,2]
[361381599,1747535442992,-450.0,0.00015342,2]
[361381601,1747535443001,-2131.66,0.00015342,2]
[361381602,1747535443011,-605.18,0.00015342,2]
[361381603,1747535443020,-153.0,0.00015342,2]
[361381604,1747535443030,-153.0,0.00015342,2]
[361381605,1747535443039,-153.0,0.00015342,2]
[361381606,1747535443049,-1107.9,0.00015479,2]
[361381607,1747535443058,-178.01955957,0.00015479,2]
[361381608,1747535443067,-450.0,0.00015479,2]
[361381609,1747535443076,-1081.44,0.00015479,2]
[361381610,1747535443086,-450.0,0.00015479,2]
[361381611,1747535443095,-548.79,0.00015479,2]
[361381612,1747535443104,-521.87068062,0.00015479,2]
[361381613,1747535443113,-2131.66,0.00015479,2]
[361381614,1747535443124,-605.18,0.00015479,2]
[361381616,1747535443133,-151.311772,0.00015555,2]
[361381618,1747535443142,-3393.25370681,0.00015555,2]
[361381620,1747535443151,-1107.9,0.00015616,2]
[361381622,1747535443160,-450.0,0.00015616,2]
[361381624,1747535443169,-1081.44,0.00015616,2]
[361381625,1747535443178,-450.0,0.00015616,2]
[361381626,1747535443187,-548.79,0.00015616,2]
[361381627,1747535443196,-2131.66,0.00015616,2]
[361381628,1747535443205,-605.18,0.00015616,2]
[361381629,1747535443214,-151.0,0.00015659,2]
[361381630,1747535443223,-1107.9,0.00015753,2]
[361381631,1747535443232,-450.0,0.00015753,2]
[361381632,1747535443241,-1081.44,0.00015753,2]
[361381633,1747535443250,-450.0,0.00015753,2]
[361381634,1747535443259,-548.79,0.00015753,2]
[361381635,1747535443268,-2131.66,0.00015753,2]
[361381636,1747535443278,-605.18,0.00015753,2]
[361381637,1747535443287,-452.613283,0.00015864,2]
[361381638,1747535443296,-151.0,0.0001589,2]
[361381639,1747535443305,-151.0,0.0001589,2]
[361381640,1747535443314,-151.0,0.0001589,2]
[361381641,1747535443323,-1107.9,0.0001589,2]
[361381642,1747535443333,-450.0,0.0001589,2]
[361381643,1747535443342,-1081.44,0.0001589,2]
[361381644,1747535443352,-450.0,0.0001589,2]
[361381645,1747535443363,-548.79,0.0001589,2]
[361381646,1747535443373,-2131.66,0.0001589,2]
[361381647,1747535443383,-605.18,0.0001589,2]
[361381648,1747535443392,-951.7691298,0.00015946,2]
[361381649,1747535443401,-3393.25370681,0.00015969,2]
[361381650,1747535443412,-160.0,0.00016,3]
[361381651,1747535443421,-151.0,0.00016,2]
[361381652,1747535443430,-151.0,0.00016,2]
[361381653,1747535443439,-151.0,0.00016,2]
[361381654,1747535443448,-998.55070715,0.00016,3]
[361381655,1747535443458,-314.4327999,0.00016,3]
[361381656,1747535443467,-5694.57932622,0.00016,3]
[361381657,1747535444311,-846.85,0.00012329,2]
[361381658,1747535444321,-500.0,0.0001305,2]
[361381659,1747535444331,-500.0,0.0001305,2]
[361381660,1747535444340,-191.67145433,0.0001305,2]
[361381661,1747535444349,-500.0,0.0001305,2]
[361381662,1747535444359,-500.0,0.0001305,2]
[361381663,1747535444367,-500.0,0.0001305,2]
[361381664,1747535444377,-500.0,0.0001305,2]
[361381665,1747535444386,-500.0,0.0001305,2]
[361381666,1747535444395,-500.0,0.0001305,2]
[361381667,1747535444405,-500.0,0.0001305,2]
[361381668,1747535444414,-292.64103644,0.0001305,2]
[361381669,1747535444423,-500.0,0.0001305,2]
[361381670,1747535444432,-186.65538542,0.0001305,2]
[361381671,1747535444441,-500.0,0.0001305,2]
[361381672,1747535444451,-173.567729,0.00013697,2]
[361381673,1747535444460,-173.567729,0.00013697,2]
[361381674,1747535444470,-173.567729,0.00013698,2]
[361381675,1747535444479,-173.567729,0.00013698,2]
[361381676,1747535444489,-173.567729,0.00013698,2]
[361381677,1747535444498,-173.567729,0.00013698,2]
[361381678,1747535444508,-173.567729,0.00013698,2]
[361381679,1747535444517,-367.46764265,0.00013698,2]
[361381680,1747535444526,-173.567729,0.00013698,2]
[361381681,1747535444536,-173.567729,0.00013698,2]
[361381682,1747535444545,-173.567729,0.00013698,2]
[361381683,1747535444554,-173.567729,0.00013698,2]
[361381684,1747535444563,-173.567729,0.00013698,2]
[361381685,1747535444573,-173.567729,0.00013698,2]
[361381686,1747535444582,-173.567729,0.00013698,2]
[361381687,1747535444591,-173.567729,0.00013698,2]
[361381688,1747535444600,-450.0,0.00013698,2]
[361381689,1747535444609,-173.567729,0.00013698,2]
[361381690,1747535444619,-173.567729,0.00013698,2]
[361381691,1747535444631,-173.567729,0.00013698,2]
[361381692,1747535444640,-500.0,0.00013699,2]
[361381693,1747535444650,-500.0,0.00013699,2]
[361381694,1747535444659,-500.0,0.00013699,2]
[361381695,1747535444669,-327.40429915,0.00013699,2]
[361381696,1747535444679,-450.0,0.00015068,2]
[361381697,1747535444687,-450.0,0.00015205,2]
[361381698,1747535444697,-450.0,0.00015342,2]
[361381699,1747535444706,-73.05373268,0.00015479,2]
[361381712,1747535785867,1614.73644034,0.00025482,120]
[361381713,1747536086250,1935.98536039,0.0002548,120]
[361381739,1747536433996,502.62781588,0.00025519,30]
[361381746,1747536564309,-187.0,0.00012289,2]
[361381747,1747536564329,-300.0,0.00012289,2]
[361381748,1747536564348,-24650.0,0.0001229,2]
[361381750,1747536601346,2003.0,0.00027,120]
[361381786,1747536631988,-638.54313076,0.0001229,2]
[361381788,1747536631999,-250.0,0.00012524,2]
[361381790,1747536632008,-300.0,0.00013331,2]
[361381792,1747536632017,-187.40615394,0.00013332,2]
[361381794,1747536632027,-500.0,0.00013332,2]
[361381795,1747536632036,-421.4045596,0.00013332,2]
[361381796,1747536632045,-500.0,0.00013332,2]
[361381798,1747536632055,-500.0,0.00013332,2]
[361381801,1747536632065,-500.0,0.00013332,2]
[361381803,1747536632074,-500.0,0.00013332,2]
[361381805,1747536632083,-500.0,0.00013332,2]
[361381807,1747536632092,-359.83843503,0.00013332,2]
[361381810,1747536632114,-101.21387945,0.00013332,2]
[361381812,1747536632123,-24900.0,0.00013333,2]
[361381815,1747536632132,-631.25085743,0.00013387,2]
[361381817,1747536632141,-1156.76592063,0.00013598,2]
[361381819,1747536632151,-305.9755354,0.00013598,2]
[361381820,1747536632160,-1156.76592059,0.00013667,2]
[361381822,1747536632169,-500.0,0.00013673,2]
[361381824,1747536632178,-500.0,0.00013673,2]
[361381826,1747536632187,-500.0,0.00013673,2]
[361381828,1747536632196,-502.01940604,0.00013673,2]
[361381830,1747536632205,-500.0,0.00013673,2]
[361381832,1747536632214,-502.61424975,0.00013673,2]
[361381834,1747536632224,-500.0,0.00013673,2]
[361381836,1747536632233,-500.0,0.00013673,2]
[361381838,1747536632242,-343.2474641,0.00013673,2]
[361381840,1747536632251,-151.0,0.00013697,2]
[361381842,1747536632261,-500.0,0.00013697,2]
[361381844,1747536632270,-500.0,0.00013697,2]
[361381847,1747536632280,-500.0,0.00013697,2]
[361381849,1747536632290,-177.07369055,0.00013697,2]
[361381851,1747536632299,-500.0,0.00013697,2]
[361381853,1747536632308,-500.0,0.00013697,2]
[361381855,1747536632317,-500.0,0.00013697,2]
[361381857,1747536632326,-454.84228888,0.00013697,2]
[361381859,1747536632335,-500.0,0.00013697,2]
[361381861,1747536632345,-500.0,0.00013697,2]
[361381863,1747536632354,-500.0,0.00013697,2]
[361381865,1747536632363,-500.0,0.00013697,2]
[361381867,1747536632372,-500.0,0.00013697,2]
[361381869,1747536632381,-151.0,0.00013698,2]
[361381871,1747536632390,-151.0,0.00013698,2]
[361381873,1747536632399,-151.0,0.00013698,2]
[361381874,1747536632408,-151.0,0.00013698,2]
[361381876,1747536632417,-164.922603,0.00013698,2]
[361381878,1747536632426,-400.0,0.00013698,2]
[361381879,1747536632435,-400.0,0.00013698,2]
[361381880,1747536632444,-400.0,0.00013698,2]
[361381882,1747536632454,-400.0,0.00013698,2]
[361381884,1747536632463,-400.0,0.00013698,2]
[361381885,1747536632472,-450.0,0.00013698,2]
[361381887,1747536632481,-401.27872685,0.00013698,2]
[361381889,1747536632490,-450.0,0.00013698,2]
[361381891,1747536632499,-450.0,0.00013698,2]
[361381893,1747536632508,-502.86983992,0.00013698,2]
[361381895,1747536632518,-450.0,0.00013698,2]
[361381897,1747536632527,-450.0,0.00013698,2]
[361381898,1747536632536,-405.47137417,0.00013698,2]
[361381899,1747536632546,-450.0,0.00013698,2]
[361381900,1747536632555,-400.0,0.00013698,2]
[361381901,1747536632564,-505.10797936,0.00013698,2]
[361381902,1747536632574,-400.85672942,0.00013698,2]
[361381903,1747536632583,-402.04926596,0.00013698,2]
[361381904,1747536632592,-501.90852557,0.00013698,2]
[361381905,1747536632601,-450.0,0.00013698,2]
[361381906,1747536632611,-450.0,0.00013698,2]
[361381907,1747536632620,-400.98200819,0.00013698,2]
[361381908,1747536632629,-454.25151724,0.00013698,2]
[361381910,1747536632639,-401.6777489,0.00013698,2]
[361381912,1747536632648,-400.0,0.00013698,2]
[361381914,1747536632657,-507.52922009,0.00013698,2]
[361381916,1747536632667,-505.25921589,0.00013698,2]
[361381918,1747536632677,-402.81584301,0.00013698,2]
[361381920,1747536632686,-450.0,0.00013698,2]
[361381922,1747536632695,-620.14658293,0.00013698,2]
[361381924,1747536632703,-400.0,0.00013698,2]
[361381926,1747536632712,-450.0,0.00013698,2]
[361381928,1747536632721,-401.5767582,0.00013698,2]
[361381930,1747536632730,-505.315503,0.00013698,2]
[361381932,1747536632739,-400.0,0.00013698,2]
[361381934,1747536632748,-450.0,0.00013698,2]
[361381936,1747536632758,-503.66294754,0.00013698,2]
[361381938,1747536632767,-403.4372791,0.00013698,2]
[361381940,1747536632776,-400.0,0.00013698,2]
[361381942,1747536632785,-450.0,0.00013698,2]
[361381943,1747536632794,-451.48729797,0.00013698,2]
[361381944,1747536632803,-401.88214784,0.00013698,2]
[361381945,1747536632813,-450.0,0.00013698,2]
[361381948,1747536632824,-450.0,0.00013698,2]
[361381950,1747536632833,-450.0,0.00013698,2]
[361381952,1747536632843,-450.0,0.00013698,2]
[361381953,1747536632851,-512.87874192,0.00013698,2]
[361381954,1747536632861,-400.0,0.00013698,2]
[361381955,1747536632870,-507.24380861,0.00013698,2]